Cogmind - Beta 16 @@@ ROGUE MODE // 2026.01.19 @ 16:00:38 Player: Lunishko Result: Self-destructed Performance ------------- Evolutions (2) 1000 Regions Visited (4) 800 Robots Destroyed (0) 0 Value Destroyed (0) 0 Prototype IDs (2) 40 Alien Tech Used (0) 0 Bonus (470) 470 TOTAL SCORE: 2310 Bonus ------- Pacifist 470 Cogmind --------- Core Integrity 478/550 Matter 239/300 Energy 100/100 System Corruption 0% Temperature Cool (0) Movement Rolling (80) Location -8/Materials Parts ------- > --- POWER (1) -------- (None) > --- PROPULSION (4) --- Wheel > --- UTILITY (4) ------ (None) > --- WEAPON (2) ------- Grenade Launcher > --- INVENTORY (5) ---- Ion Engine Titanium Leg Improved Heat Sink Medium Laser Light Assault Rifle Peak State ------------ > --- POWER ------------ Ion Engine > --- PROPULSION ------- Wheel Compact Wheel > --- UTILITY ---------- (None) > --- WEAPON ----------- Medium Laser Small Laser > --- INVENTORY -------- Ion Engine [Rating: 5] Favorites ----------- Power Ion Engine Engine Ion Engine Propulsion Wheel Leg Titanium Leg Wheel Wheel Utility None Weapon Small Laser Energy Gun Small Laser Launcher Grenade Launcher Build | -11 -10 -9 -9 -8 ------- Run | Yrd Mat Mat Min Mat Slots Evolved 4 | . . 2 . 2 Power . | . . . . . Propulsion 2 | . . . . 2 Utility 2 | . . 2 . . Weapon . | . . . . . Parts Attached 10 | 5 . 1 . 4 Power 1 | 1 . . . . Engine 1 | 1 . . . . Core . | . . . . . Reactor . | . . . . . Propulsion 5 | 2 . . . 3 Treads . | . . . . . Leg 1 | . . . . 1 Wheel 4 | 2 . . . 2 Hover . | . . . . . Flight . | . . . . . Utility . | . . . . . Device . | . . . . . Storage . | . . . . . Processor . | . . . . . Hackware . | . . . . . Protection . | . . . . . Artifact . | . . . . . Weapon 4 | 2 . 1 . 1 Energy Gun 2 | 2 . . . . Energy Cannon . | . . . . . Ballistic Gun . | . . . . . Ballistic Cannon . | . . . . . Launcher 2 | . . 1 . 1 Special Weapon . | . . . . . Impact Weapon . | . . . . . Slashing Weapon . | . . . . . Piercing Weapon . | . . . . . Special Melee Weapon . | . . . . . Unidentified Prototypes . | . . . . . Parts Lost 6 | . . . 5 1 Power 1 | . . . 1 . Propulsion 3 | . . . 2 1 Utility . | . . . . . Weapon 2 | . . . 2 . Highest Loss Streak 5 | . . . 5 1 To Critical Strikes 1 | . . . 1 . Average Backups 3 | . 2 3 3 4 Power . | . 1 1 1 1 Propulsion . | . . . . . Utility . | . . . . . Weapon 1 | . 1 2 2 2 Tool/Special . | . . . . . Unused Backups 3 | . . . . 3 Power 1 | . . . . 1 Propulsion . | . . . . . Utility 1 | . . . . 1 Weapon 1 | . . . . 1 Tool/Special . | . . . . . Average Slot Usage (%) 37 | . 71 55 27 9 Engine 6 | . 14 11 5 . Wheel 15 | . 28 22 11 6 Energy Gun 12 | . 28 17 5 . Launcher 2 | . . 4 5 3 Peak Build Rating 5 | 5 5 5 5 3 Average Rating 3 | 4 5 5 2 1 On Entrance 3 | . 5 5 5 . Avg Prop Armor Cover (%) . | . . . . . Naked Turns 78 | . . . 10 68 Heaviest Build 9 | 8 8 9 9 3 Greatest Support 26 | 26 26 26 26 20 Greatest Overweight (x) 1 | 1 . . . . Average Overweight (x) . | . . . . . Largest Inventory Capacity 5 | 5 5 5 5 5 Average Capacity 5 | 5 5 5 5 5 Most Carried 5 | 2 3 3 3 5 Average Carried 3 | . 2 3 3 4 Final Capacity 5 | 5 5 5 5 5 Final Carried 5 | 2 3 3 3 5 Class Distribution -------------------- 100% | Mutant Dominant Class ---------------- Mutant | -10/Materials Mutant | -9/Materials Mutant | -9/Mines Mutant | -8/Materials Resources | -11 -10 -9 -9 -8 ----------- Run | Yrd Mat Mat Min Mat Matter Collected 215 | 215 . . . . Remotely . | . . . . . Salvage Created . | . . . . . Parts . | . . . . . Haulers Intercepted . | . . . . . Recyclers Shooed . | . . . . . Parts Field Recycled . | . . . . . Retrieved Matter . | . . . . . Parts Self-Destructed . | . . . . . Prevented . | . . . . . Parts Restored . | . . . . . Kills | -11 -10 -9 -9 -8 ------- Run | Yrd Mat Mat Min Mat Combat Hostiles Destroyed . | . . . . . Classes Destroyed . | . . . . . Best Kill Streak . | . . . . . Combat Bots Only . | . . . . . Max Kills in Single Turn . | . . . . . Gunslinging . | . . . . . Exploded . | . . . . . Melee . | . . . . . Uniques/NPCs Destroyed . | . . . . . Combat | -11 -10 -9 -9 -8 -------- Run | Yrd Mat Mat Min Mat Hostile Shots Fired 106 | . 31 6 44 25 Missed 37 | . 12 4 13 8 Hits 69 | . 19 2 31 17 Projectile 69 | . 19 2 31 17 Critical Strikes 1 | . . . 1 . Damage Taken 648 | . 148 38 267 195 Core 226 | . 39 3 112 72 Absorbed by Shields . | . . . . . Core Remaining (%) 85 | 100 84 . 71 . Volleys Fired 2 | . . 1 . 1 Largest 2 | . . 2 . 1 Hottest 70 | . . 70 . 30 Shots Fired 3 | . . 2 . 1 Gun 1 | . . 1 . . Cannon . | . . . . . Launcher 2 | . . 1 . 1 Special . | . . . . . Kinetic . | . . . . . Thermal 1 | . . 1 . . Explosive 2 | . . 1 . 1 Electromagnetic . | . . . . . Robot Hit Streak . | . . . . . Robot Miss Streak . | . . . . . Penetration Max . | . . . . . Secondary Targets . | . . . . . Shots Hit Robots . | . . . . . Core Hits 1 | . . . . 1 Critical Kills . | . . . . . Critical Parts Destroyed . | . . . . . Critical Strikes . | . . . . . Melee Attacks . | . . . . . Impact . | . . . . . Slashing . | . . . . . Piercing . | . . . . . Sneak Attacks . | . . . . . Combat Hostiles . | . . . . . Follow-up Attacks . | . . . . . Damage Inflicted 25 | . 6 3 5 11 Guns . | . . . . . Cannons . | . . . . . Explosions 3 | . . 3 . . Melee . | . . . . . Ramming 22 | . 6 . 5 11 Kinetic . | . . . . . Thermal . | . . . . . Explosive 3 | . . 3 . . Electromagnetic . | . . . . . Impact . | . . . . . Slashing . | . . . . . Piercing . | . . . . . Highest Corruption . | . . . . . Average Corruption . | . . . . . Corruption Purged . | . . . . . Corruption Blocked . | . . . . . Overload Shots . | . . . . . Overflow Damage . | . . . . . Projectiles . | . . . . . Explosions . | . . . . . Melee . | . . . . . Knockbacks . | . . . . . Impact . | . . . . . Kinetic . | . . . . . Secondary . | . . . . . Self-Inflicted Damage 16 | . 2 7 2 5 Shots 1 | . . 1 . . Rammed 4 | . 2 . 1 1 Targets Rammed 4 | . 2 . 1 1 Kicked . | . . . . . Crushed . | . . . . . Highest Temperature . | . . . . . Average Temperature . | . . . . . Received Heat Transfer 72 | . . 9 . 63 Siege Activations . | . . . . . Martial Activations . | . . . . . Shielding Activations . | . . . . . Robots Disrupted . | . . . . . Combat Hostiles . | . . . . . Robots Corrupted . | . . . . . Combat Hostiles . | . . . . . Parts Fried . | . . . . . Impact Corruptions . | . . . . . Robots Melted . | . . . . . Combat Hostiles . | . . . . . Parts Melted . | . . . . . Heat Transferred . | . . . . . Parts Sabotaged . | . . . . . Parts Stolen . | . . . . . Parts Stripped . | . . . . . Power Chain Reactions . | . . . . . Alert | -11 -10 -9 -9 -8 ------- Run | Yrd Mat Mat Min Mat Maximum Alert Level . | . . . . . Low Security (%) 100 | 100 100 100 100 100 Level 1 . | . . . . . Level 2 . | . . . . . Level 3 . | . . . . . Level 4 . | . . . . . Level 5 . | . . . . . High Security . | . . . . . Max Security . | . . . . . Peak Influence 15 | . 15 7 . 7 Initial 1 | . . 1 . . Average . | . 2 1 . . Influence Increases 34 | . 15 7 . 12 Successful Hack 5 | . . . . 5 Destroy Structure 14 | . . 7 . 7 Lose Combat Pursuer 15 | . 15 . . . Influence Decreases 34 | . 10 12 . 12 Entered New Map 4 | . . 4 . . Time Decay 25 | . 10 8 . 7 Lost Part 5 | . . . . 5 Squads Dispatched 1 | . . . . 1 Investigation . | . . . . . Extermination . | . . . . . Reinforcement 1 | . . . . 1 Assault . | . . . . . Garrison . | . . . . . Intercept . | . . . . . Searches Triggered . | . . . . . Construction Impeded . | . . . . . Haulers Reinforced . | . . . . . Active Scanning Responses . | . . . . . Cargo Convoy Interrupts . | . . . . . Stealth | -11 -10 -9 -9 -8 --------- Run | Yrd Mat Mat Min Mat Distress Signals 1 | . . . . 1 Communications Jammed . | . . . . . Distress Signals . | . . . . . Times Spotted 22 | . 6 1 4 11 Peak Tracking Total 11 | . 4 1 4 11 Tactical Retreats 1 | . 1 . . . Traps | -11 -10 -9 -9 -8 ------- Run | Yrd Mat Mat Min Mat Traps Triggered . | . . . . . Indirectly . | . . . . . Trap Hack Attempts . | . . . . . Triggered . | . . . . . Disarmed . | . . . . . Reprogrammed . | . . . . . Reused . | . . . . . Traps Extracted . | . . . . . Installed . | . . . . . Triggered . | . . . . . Machines | -11 -10 -9 -9 -8 ---------- Run | Yrd Mat Mat Min Mat Machines Disabled . | . . . . . Max in Single Turn . | . . . . . Machines Repaired . | . . . . . Machines Dismantled . | . . . . . Machines Sabotaged . | . . . . . Overloaded Fab Kills . | . . . . . Hacking | -11 -10 -9 -9 -8 --------- Run | Yrd Mat Mat Min Mat Machines Accessed 4 | . 1 . 1 2 Terminals 4 | . 1 . 1 2 Fabricators . | . . . . . Repair Stations . | . . . . . Recycling Units . | . . . . . Scanalyzers . | . . . . . Garrison Access . | . . . . . Total Hacks 10 | . 3 . 2 5 Successful 5 | . 1 . 1 3 Failed 5 | . 2 . 1 2 Catastrophic . | . . . . . Database Lockouts . | . . . . . Manual 1 | . . . . 1 Terminals 10 | . 3 . 2 5 Fabricators . | . . . . . Repair Stations . | . . . . . Recycling Units . | . . . . . Scanalyzers . | . . . . . Garrison Access . | . . . . . Terminal Hacks 5 | . 1 . 1 3 Prototype ID Bank 1 | . . . . 1 Maintenance Status 1 | . . . . 1 Surveillance Status 1 | . 1 . . . Investigation Status 1 | . . . . 1 Zone Layout 1 | . . . 1 . Fabricator Hacks . | . . . . . Repair Station Hacks . | . . . . . Recycling Unit Hacks . | . . . . . Scanalyzer . | . . . . . Garrison Access Hacks . | . . . . . Unauthorized Hacks . | . . . . . Terminals . | . . . . . Fabricators . | . . . . . Repair Stations . | . . . . . Recycling Units . | . . . . . Scanalyzers . | . . . . . Garrison Access . | . . . . . Data Cores Recovered . | . . . . . Used . | . . . . . Hacking Detections 4 | . 1 . 1 2 Full Trace Events . | . . . . . Feedback Events . | . . . . . Feedback Blocked . | . . . . . Robot Schematics Acquired . | . . . . . Robots Built . | . . . . . Authchips . | . . . . . Time . | . . . . . Total Robot Build Rating . | . . . . . Part Schematics Acquired . | . . . . . Parts Built . | . . . . . Authchips . | . . . . . Time . | . . . . . Total Part Build Rating . | . . . . . Part Studies Acquired . | . . . . . Parts Repaired . | . . . . . Time . | . . . . . Parts Recycled . | . . . . . Recycled Matter . | . . . . . Retrieved Matter . | . . . . . Retrieved Components . | . . . . . Parts Scanalyzed . | . . . . . Part Schematics Acquired . | . . . . . Parts Damaged . | . . . . . Bothacking | -11 -10 -9 -9 -8 ------------ Run | Yrd Mat Mat Min Mat Used RIF Installer . | . . . . . Robots Hacked . | . . . . . Non-combat . | . . . . . Combat . | . . . . . Robot Hacks Applied . | . . . . . Relay Couplers Released . | . . . . . Fabnet Peak Effective % . | . . . . . Robots Rewired . | . . . . . Allies Hacked . | . . . . . Hacks Repelled . | . . . . . Allies | -11 -10 -9 -9 -8 -------- Run | Yrd Mat Mat Min Mat Total Allies . | . . . . . Largest Group . | . . . . . Highest-Rated Group . | . . . . . Highest-Rated Ally . | . . . . . Total Orders . | . . . . . Ally Attacks . | . . . . . Total Damage . | . . . . . Kills . | . . . . . Allies Corrupted . | . . . . . Allies Melted . | . . . . . Intel | -11 -10 -9 -9 -8 ------- Run | Yrd Mat Mat Min Mat Active Infowar (turns) . | . . . . . Robot Analysis Total . | . . . . . Derelict Logs Recovered 1 | . . . 1 . Drone Launches . | . . . . . Drone Recoveries . | . . . . . Exploration | -11 -10 -9 -9 -8 ------------- Run | Yrd Mat Mat Min Mat Turns Passed 318 | 53 76 40 33 116 Spaces Moved 388 | 47 81 40 42 178 Core 147 | 2 . . 18 127 Treads . | . . . . . Legs . | . . . . . Wheels 241 | 45 81 40 24 51 Hover . | . . . . . Flight . | . . . . . Fastest Speed 50 | 50 90 90 50 50 Average Speed 74 | 92 90 90 76 58 Slowest Speed 100 | 100 90 90 100 80 Overloaded Moves . | . . . . . Propulsion Burnouts . | . . . . . Robots Hopped . | . . . . . Potential Cave-ins . | . . . . . Cave-ins Triggered . | . . . . . Exploration Rate (%) 14 | 4 21 8 16 24 Regions Visited 4 Branch Regions 1 Pre-discovered Areas 1 | . . . 1 . Known Exits Taken . | . . . . . Unknown Exits Taken 4 | 1 1 1 1 . Scrap Searched . | . . . . . Spaces Dug 6 | . . . . 6 Terrain Destroyed 12 | . . 6 . 6 Melee . | . . . . . Projectile . | . . . . . AOE 12 | . . 6 . 6 Terrain Rammed . | . . . . . Walls Destroyed . | . . . . . Machines Disabled . | . . . . . Actions | -11 -10 -9 -9 -8 --------- Run | Yrd Mat Mat Min Mat Total 406 | 53 83 41 42 187 Wait . | . . . . . Move 385 | 46 80 39 42 178 Hop . | . . . . . Pick Up 5 | 2 1 . . 2 Fast Attach 8 | 5 . . . 3 Attach 1 | . . . . 1 Detach 1 | . . . . 1 Swap 1 | . . 1 . . Drop . | . . . . . Fire 2 | . . 1 . 1 Melee . | . . . . . Ram 3 | . 2 . . 1 Kick . | . . . . . Crush . | . . . . . Escape Stasis . | . . . . . Rewire . | . . . . . Trap . | . . . . . Miscellaneous . | . . . . . Route ------- -11/Scrapyard -10/Materials -9/Materials -9/Mines -8/Materials History --------- Turn | Location | Event 10 | -11/Scrapyard | Discovered new exit (range 16) 54 | -11/Scrapyard | Entered Materials 128 | -10/Materials | Discovered new exit (range 3) 130 | -10/Materials | Entered another Materials area 130 | -9/Materials | Evolved 2 slots: Utility x2 151 | -9/Materials | Discovered new exit (range 11) 170 | -9/Materials | Entered Mines 190 | -9/Mines | Learned location of Storage (-7) 197 | -9/Mines | Discovered new exit (range 15) 203 | -9/Mines | Entered Materials 203 | -8/Materials | Evolved 2 slots: Propulsion x2 224 | -8/Materials | Lost 5 parts (1p2n2w) 316 | -8/Materials | Build established: Mutant 319 | -8/Materials | Self-destructed Last Messages --------------- 00276_ Acquired Grenade Launcher. 00284_ K-01 Serf collects debris. 00287_ ALERT: Suspicious intruders detected, dispatching Cutter reinforcements to area. 00300_ W-25 Informer sends out distress signal. 00306_ Connecting with Terminal... >>Enumerate(Maintenance) Found 28 registered maintenance bots. 9 Workers 6 Builders 7 Tunnelers 4 Recyclers 2 Mechanics Downloaded coordinate data. >>Enumerate(Investigations) Retrieving latest reported positions... No active investigation squads found. 00314_ A-02 Transporter suffers critical hit (Burn). 00314_ A-02 Transporter destroyed. 00316_ Wheel destroyed. Map ----- +----------------------------------------------------+ | ?????????????????????????????????????????????????? | | ?????????????????????????????????????????????????? | | ?????????????????????????????????????????????????? | | ???????????????????????????????????????? ######### | | ??????????????????????????????????????? | | ??????????????????????????????????????? | | ??????????????????????????????????????? | | ??????????????????????????????????????????######## | | ??????????????????????????????????????????????# | | ??????????????????????????????????????????????# | | ??????????????????????????????????????????????# | | ????????????????????????????????????? ??????# | | ??????????????????????????????????? ??????# | | ??????????????????????????????????? ?????# | | ??????????????????????????????????? ?????# | | ?????????????????????##????????????? ?????# | | ?????????????????????#Y#######?????? ?????#+## | | ????????????????????? ??????# #?????# #? | | ?????????????????????? ""???????# #?????# #? | | ?????????????????????? "T???????# #?????# #? | | ???????????????????????" ????????# #?????# #? | | ???????????????????????" ????????# #?????# ## | | ???????????????????????? ?????????# #?????# # | | ???????????????????????? ????????## ##????# # | | ??????????????###########/########## ! ###### # | | ?????????? s @ o *** # | | ?????????? s !w%*= T + | | ?????????? s gg*= Y # | | ???????????#######/##########r###### ######## | | ????????????????????????????# #????###+###??????# | | ????????????????????????????# #????? ???????## | | ????????????????????????????# #???"" """ ! ??????? | | ????????????????????????????# #? """ """ ????? | | ????????????????????????????# ## """ """ //= #??? | | ????????????????????????????# #? // ##??? | | ????????????????????????????? ?# // #???? | | ????????????????????????????? ?###############???? | | ????????????????????????????? ???????????????????? | | ????????????????????????????? ???????????????????? | | ????????????????????????????? ???????????????????? | | ????????????????????????????? ???????????????????? | | ?????????????????????????????????????????????????? | | ?????????????????????????????????????????????????? | | ?????????????????????????????????????????????????? | | ?????????????????????????????????????????????????? | | ?????????????????????????????????????????????????? | | ?????????????????????????????????????????????????? | | ?????????????????????????????????????????????????? | | ?????????????????????????????????????????????????? | | ?????????????????????????????????????????????????? | +----------------------------------------------------+ Best States ------------- Heat Dissipation 31 Energy Generation 10 Energy Capacity 250 Matter Stores 282 Matter Capacity 300 Sight Range 16 Terrain Scan Density 10 Evasion (%) 50 Item Schematics ----------------- None Robot Schematics ------------------ None Fabricated ------------ Nothing Repaired ---------- Nothing Studied --------- None Alien Tech Used ----------------- None Achievements -------------- None Challenges ------------ None Game ------ Seed MeleeAluminumCore Manual? 0 Play Time 00:09:03 Cumulative 36.1 hours Start 2026.01.19 @ 15:54:09 End 2026.01.19 @ 16:00:38 Sessions 1 Manual Loads 0 Difficulty Rogue Special Mode None Game No. 39 Rogue 39 Adventurer 0 Explorer 0 Win Type - Total 1 Types 1/0/0/0/0/0/0/0/0/0 Lore% 29 Gallery% 25 Achievement% 26 Wizard Run 0 Options --------- Layout 0 ASCII 0 Keyboard 0 Movement Mouse Keybinds 0 Fullscreen 2 Font 36/Smallcaps Map View 76x50 Zoom Use 0% Tactical HUD 1 Map Filters NONE Filters NONE Steam 1 RUN: 6f2c4eec-2c37-42e6-b78f-83fe00928e8a